[Event "GER-chW 2019"]
[Site "Magdeburg"]
[Date "2019.05.26"]
[Round "1.1"]
[White "Mehling, Katharina"]
[Black "Michna, Marta"]
[Result "0-1"]
[ECO "C05"]
[WhiteElo "1974"]
[BlackElo "2355"]
[Annotator "NA"]
[PlyCount "64"]
[EventDate "2019.05.26"]
[EventType "tourn"]
[EventCountry "GER"]
[SourceTitle "playchess.com"]
[Source "ChessBase"]
[SourceQuality "1"]
[TimeControl "40/5400+30:1800+30"]

1. e4 {[%emt 0:00:00]} e6 {[%emt 0:00:00]} 2. d4 {[%emt 0:00:00]} d5 {[%emt 0:00:00]} 3. Nd2 {[%emt 0:00:00]} Nf6 {[%emt 0:00:39]} 4. e5 {[%emt 0:00:00]} Nfd7 {[%emt 0:00:04]} 5. Bd3 {[%emt 0:00:40]} c5 {[%emt 0:00:07]} 6. c3 {[%emt 0:00:09]} Nc6 {[%emt 0:00:07]} 7. Ne2 {[%emt 0:00:20]} a5 {[%emt 0:00:26]} 8. O-O {[%emt 0:02:01]} cxd4 {[%emt 0:00:11]} 9. cxd4 {[%emt 0:00:11]} Nb6 {[%emt 0:00:06]} 10. f4 {[%emt 0:06:37]} g6 {[%emt 0:00:09]} 11. b3 {[%emt 0:09:33]} h5 {[%emt 0:00:13]} 12. Nf3 {[%emt 0:14:26]} Bd7 {[%emt 0:00:06]} 13. Nc3 {[%emt 0:04:48]} Ne7 {[%emt 0:11:52]} 14. Ba3 {[%emt 0:03:30]} Bc6 {[%emt 0:04:43]} 15. Qd2 {[%emt 0:16:50]} Qd7 {[%emt 0:15:37]} 16. Rfc1 {[%emt 0:03:14]} Bh6 {[%emt 0:15:20]} 17. Ne2 {[%emt 0:12:23]} Nbc8 {[%emt 0:07:34]} 18. Rc5 {[%emt 0:03:05]} Qd8 {[%emt 0:03:09]} 19. Rac1 {[%emt 0:02:35]} O-O {[%emt 0:00:44]} 20. Bb1 {[%emt 0:05:32]} Re8 {[%emt 0:06:51]} 21. Ng3 {[%emt 0:02:20]} Qd7 {[%emt 0:08:06]} 22. Ng5 {[%emt 0:02:06]} Na7 {[%emt 0:09:36]} 23. Qc2 {[%emt 0:01:55]} Nf5 {[%emt 0:07:05]} 24. Nxf5 {[%emt 0:00:26]} exf5 {[%emt 0:00:04]} 25. Rxa5 {[%emt 0:00:40]} Bxg5 {[%emt 0:03:27]} 26. fxg5 {[%emt 0:00:10]} b6 {[%emt 0:00:25]} 27. Rxa7 {[%emt 0:03:52]} Qxa7 {[%emt 0:00:14]} 28. Bd6 {[%emt 0:01:41]} Bd7 {[%emt 0:01:22]} 29. Qe2 {[%emt 0:01:51]} Rac8 {[%emt 0:00:19]} 30. Rf1 {[%emt 0:01:06]} Qa5 {[%emt 0:01:13]} 31. b4 {[%emt 0:01:39]} Qa3 {[%emt 0:00:44]} 32. b5 {[%emt 0:00:40]} Qxd6 {[%emt 0:00:34]} 0-1

[Event "GER-chW 2019"]
[Site "Magdeburg"]
[Date "2019.05.26"]
[Round "1.2"]
[White "Schulze, Lara"]
[Black "Zimmer, Elke"]
[Result "1-0"]
[ECO "C05"]
[WhiteElo "2160"]
[BlackElo "1926"]
[Annotator "NA"]
[PlyCount "81"]
[EventDate "2019.05.26"]
[EventType "tourn"]
[EventCountry "GER"]
[SourceTitle "playchess.com"]
[Source "ChessBase"]
[SourceQuality "1"]
[TimeControl "40/5400+30:1800+30"]

1. e4 {[%emt 0:00:00]} e6 {[%emt 0:00:00]} 2. d4 {[%emt 0:00:00]} d5 {[%emt 0:00:31]} 3. Nd2 {[%emt 0:00:00]} Nf6 {[%emt 0:00:30]} 4. e5 {[%emt 0:00:00]} Nfd7 {[%emt 0:00:04]} 5. Bd3 {[%emt 0:00:00]} c5 {[%emt 0:00:37]} 6. c3 {[%emt 0:00:01]} Nc6 {[%emt 0:01:42]} 7. Ne2 {[%emt 0:00:03]} Be7 {[%emt 0:01:23]} 8. O-O {[%emt 0:00:47]} a6 {[%emt 0:01:06]} 9. f4 {[%emt 0:06:40]} g6 {[%emt 0:00:08]} 10. Nf3 {[%emt 0:06:54]} b5 {[%emt 0:06:07]} 11. Be3 {[%emt 0:12:01]} cxd4 {[%emt 0:05:00]} 12. cxd4 {[%emt 0:04:26]} Nb6 {[%emt 0:05:49]} 13. b3 {[%emt 0:01:39]} Nb4 {[%emt 0:01:17]} 14. Bb1 {[%emt 0:03:01]} Bd7 {[%emt 0:00:42]} 15. g4 {[%emt 0:04:16]} h5 {[%emt 0:05:34]} 16. f5 {[%emt 0:15:50]} gxf5 {[%emt 0:01:07]} 17. gxf5 {[%emt 0:00:11]} exf5 {[%emt 0:05:13]} 18. a3 {[%emt 0:06:44]} Nc6 {[%emt 0:00:30]} 19. Bd3 {[%emt 0:00:34]} b4 {[%emt 0:03:46]} 20. a4 {[%emt 0:01:17]} Na5 {[%emt 0:07:49]} 21. Qb1 {[%emt 0:06:20]} Be6 {[%emt 0:01:57]} 22. Ng3 {[%emt 0:07:39]} f4 {[%emt 0:02:23]} 23. Bxf4 {[%emt 0:00:11]} Bh3 {[%emt 0:00:08]} 24. Rf2 {[%emt 0:04:01]} Qc8 {[%emt 0:14:34]} 25. Bd2 {[%emt 0:04:44]} Rg8 {[%emt 0:08:32]} 26. Kh1 {[%emt 0:02:14]} h4 {[%emt 0:03:55]} 27. Nf5 {[%emt 0:02:42]} Qd8 {[%emt 0:02:39]} 28. e6 {[%emt 0:05:57]} fxe6 {[%emt 0:05:07]} 29. Nh6 {[%emt 0:00:09]} Rf8 {[%emt 0:02:53]} 30. Bg6+ {[%emt 0:03:52]} Kd7 {[%emt 0:00:06]} 31. Nf7 {[%emt 0:01:02]} Qc8 {[%emt 0:01:42]} 32. N3e5+ {[%emt 0:00:31]} Kc7 {[%emt 0:00:07]} 33. Qd3 {[%emt 0:00:30]} Bf5 {[%emt 0:09:00]} 34. Bxf5 {[%emt 0:00:02]} exf5 {[%emt 0:00:06]} 35. Rc1+ {[%emt 0:00:06]} Nbc4 36. bxc4 {[%emt 0:01:08]} dxc4 {[%emt 0:00:20]} 37. Nxc4 {[%emt 0:01:20]} Qb7+ {[%emt 0:00:09]} 38. d5 {[%emt 0:01:05]} Nxc4 {[%emt 0:00:10]} 39. Rxc4+ {[%emt 0:00:27]} Kb8 {[%emt 0:00:05]} 40. Bf4+ {[%emt 0:00:26]} Ka7 {[%emt 0:00:20]} 41. Qd4+ {[%emt 0:30:34]} 1-0

[Event "GER-chW 2019"]
[Site "Magdeburg"]
[Date "2019.05.26"]
[Round "1.3"]
[White "Braun, Kristin"]
[Black "Burchardt, Brigitte"]
[Result "0-1"]
[ECO "B90"]
[WhiteElo "1895"]
[BlackElo "2094"]
[Annotator "NA"]
[PlyCount "64"]
[EventDate "2019.05.26"]
[EventType "tourn"]
[EventCountry "GER"]
[SourceTitle "playchess.com"]
[Source "ChessBase"]
[SourceQuality "1"]
[TimeControl "40/5400+30:1800+30"]

1. e4 {[%emt 0:00:00]} c5 {[%emt 0:00:00]} 2. Nf3 {[%emt 0:00:00]} d6 {[%emt 0:00:00]} 3. d4 {[%emt 0:00:00]} cxd4 {[%emt 0:00:00]} 4. Nxd4 {[%emt 0:00:00]} Nf6 {[%emt 0:00:00]} 5. Nc3 {[%emt 0:00:00]} a6 {[%emt 0:00:00]} 6. f3 {[%emt 0:01:04]} e6 {[%emt 0:01:21]} 7. Be3 {[%emt 0:02:25]} Qc7 {[%emt 0:04:40]} 8. Qd2 {[%emt 0:03:02]} b5 {[%emt 0:03:02]} 9. a3 {[%emt 0:10:53]} Nbd7 {[%emt 0:06:20]} 10. Be2 {[%emt 0:05:50]} Be7 {[%emt 0:01:45]} 11. O-O-O {[%emt 0:12:43]} O-O {[%emt 0:14:02]} 12. g4 {[%emt 0:12:09]} Nb6 {[%emt 0:00:05]} 13. g5 {[%emt 0:10:59]} Nfd7 {[%emt 0:01:25]} 14. Bf4 {[%emt 0:05:23]} Ne5 {[%emt 0:03:30]} 15. Ndxb5 {[%emt 0:03:10]} axb5 {[%emt 0:00:13]} 16. Nxb5 {[%emt 0:00:15]} Qc6 {[%emt 0:34:46]} 17. Nxd6 {[%emt 0:01:02]} Ng6 {[%emt 0:01:38]} 18. Bb5 {[%emt 0:08:54]} Qc7 {[%emt 0:01:42]} 19. Nxc8 {[%emt 0:03:26]} Qxc8 {[%emt 0:00:25]} 20. Be3 {[%emt 0:00:28]} Nc4 {[%emt 0:02:21]} 21. Bxc4 {[%emt 0:01:12]} Qxc4 {[%emt 0:00:07]} 22. Qd3 {[%emt 0:01:25]} Qa4 {[%emt 0:04:49]} 23. Qb3 {[%emt 0:03:00]} Qa5 {[%emt 0:00:32]} 24. h4 {[%emt 0:02:25]} Rfb8 {[%emt 0:02:23]} 25. Qa2 {[%emt 0:02:55]} Rc8 {[%emt 0:02:01]} 26. Rd7 {[%emt 0:03:39]} Qa4 {[%emt 0:01:41]} 27. Rd2 {[%emt 0:00:19]} Ne5 {[%emt 0:00:10]} 28. Re2 {[%emt 0:01:24]} Nxf3 {[%emt 0:01:11]} 29. Rf1 {[%emt 0:01:55]} Qxe4 {[%emt 0:01:15]} 30. Qb3 {[%emt 0:01:46]} Rab8 {[%emt 0:01:02]} 31. Qa2 {[%emt 0:00:44]} Bc5 {[%emt 0:00:51]} 32. Bxc5 {[%emt 0:01:27]} Qxe2 {[%emt 0:00:09]} 0-1

[Event "GER-chW 2019"]
[Site "Magdeburg"]
[Date "2019.05.26"]
[Round "1.4"]
[White "Kopylov, Luba"]
[Black "Lowke, Kathrin"]
[Result "1-0"]
[ECO "A45"]
[WhiteElo "2078"]
[BlackElo "1887"]
[Annotator "NA"]
[PlyCount "75"]
[EventDate "2019.05.26"]
[EventType "tourn"]
[EventCountry "GER"]
[SourceTitle "playchess.com"]
[Source "ChessBase"]
[SourceQuality "1"]
[TimeControl "40/5400+30:1800+30"]

1. d4 {[%emt 0:00:00]} Nf6 {[%emt 0:00:00]} 2. g3 {[%emt 0:00:00]} g6 {[%emt 0:00:01]} 3. Bg2 {[%emt 0:00:00]} Bg7 {[%emt 0:00:20]} 4. c4 {[%emt 0:00:31]} d6 {[%emt 0:00:06]} 5. Nc3 {[%emt 0:00:35]} O-O {[%emt 0:01:01]} 6. e4 {[%emt 0:01:18]} Nc6 {[%emt 0:01:19]} 7. Nge2 {[%emt 0:05:10]} e5 {[%emt 0:02:16]} 8. d5 {[%emt 0:00:27]} Nb8 {[%emt 0:05:44]} 9. h3 {[%emt 0:03:18]} a5 {[%emt 0:00:56]} 10. a3 {[%emt 0:01:54]} Na6 {[%emt 0:02:23]} 11. b4 {[%emt 0:06:04]} Bd7 {[%emt 0:03:34]} 12. Rb1 {[%emt 0:00:40]} axb4 {[%emt 0:02:00]} 13. axb4 {[%emt 0:00:06]} Ne8 {[%emt 0:01:50]} 14. O-O {[%emt 0:04:00]} f5 {[%emt 0:02:17]} 15. f4 {[%emt 0:03:34]} Qc8 {[%emt 0:19:17]} 16. fxe5 {[%emt 0:02:26]} Bxe5 {[%emt 0:03:23]} 17. Bf4 {[%emt 0:12:47]} Bg7 {[%emt 0:07:03]} 18. Kh2 {[%emt 0:01:28]} fxe4 {[%emt 0:07:30]} 19. Nxe4 {[%emt 0:01:01]} Bf5 {[%emt 0:00:25]} 20. Nd4 {[%emt 0:01:53]} Bxe4 {[%emt 0:12:02]} 21. Bxe4 {[%emt 0:00:28]} Rf7 {[%emt 0:08:03]} 22. Ne6 {[%emt 0:03:34]} c5 {[%emt 0:03:44]} 23. dxc6 {[%emt 0:09:47]} bxc6 {[%emt 0:00:36]} 24. Nxg7 {[%emt 0:04:15]} Rxg7 {[%emt 0:05:48]} 25. Bd5+ {[%emt 0:19:12]} cxd5 {[%emt 0:03:03]} 26. Qxd5+ {[%emt 0:00:07]} Rf7 {[%emt 0:00:10]} 27. Be3 {[%emt 0:00:35]} Qd7 {[%emt 0:01:30]} 28. Qxa8 {[%emt 0:01:41]} Nac7 {[%emt 0:00:14]} 29. Qa2 {[%emt 0:03:28]} Qe6 {[%emt 0:01:48]} 30. Bh6 {[%emt 0:02:05]} Ng7 {[%emt 0:02:40]} 31. Bxg7 {[%emt 0:03:56]} Kxg7 {[%emt 0:00:15]} 32. Rxf7+ {[%emt 0:00:26]} Qxf7 {[%emt 0:00:05]} 33. b5 {[%emt 0:00:18]} Ne6 {[%emt 0:01:23]} 34. b6 {[%emt 0:00:37]} Nc5 {[%emt 0:00:06]} 35. b7 {[%emt 0:01:32]} Nxb7 {[%emt 0:00:30]} 36. Qb2+ {[%emt 0:00:06]} Kh6 {[%emt 0:00:16]} 37. Qxb7 {[%emt 0:00:12]} Qxc4 {[%emt 0:00:16]} 38. Qb2 {[%emt 0:01:38]} 1-0

[Event "GER-chW 2019"]
[Site "Magdeburg"]
[Date "2019.05.26"]
[Round "1.5"]
[White "Freter, Anke"]
[Black "Kunze, Kerstin"]
[Result "1/2-1/2"]
[ECO "B90"]
[WhiteElo "1873"]
[BlackElo "2066"]
[Annotator "NA RC"]
[PlyCount "131"]
[EventDate "2019.05.26"]
[EventType "tourn"]
[EventCountry "GER"]
[SourceTitle "playchess.com"]
[Source "ChessBase"]
[SourceQuality "1"]
[TimeControl "40/5400+30:1800+30"]

1. e4 {[%emt 0:00:00]} c5 {[%emt 0:00:00]} 2. Nf3 {[%emt 0:00:00]} d6 {[%emt 0:00:35]} 3. d4 {[%emt 0:00:27]} cxd4 {[%emt 0:00:14]} 4. Nxd4 {[%emt 0:00:08]} Nf6 {[%emt 0:00:32]} 5. Nc3 {[%emt 0:00:34]} a6 {[%emt 0:00:16]} 6. Bc4 {[%emt 0:03:05]} e6 {[%emt 0:08:34]} 7. f3 {[%emt 0:06:32]} Be7 {[%emt 0:08:53]} 8. Be3 {[%emt 0:04:00]} Qc7 {[%emt 0:20:30]} 9. Bb3 {[%emt 0:01:55]} Nc6 {[%emt 0:03:30]} 10. Qd2 {[%emt 0:09:44]} Na5 {[%emt 0:02:35]} 11. g4 {[%emt 0:07:20]} Nc4 {[%emt 0:19:49]} 12. Bxc4 {[%emt 0:00:28]} Qxc4 {[%emt 0:00:03]} 13. Nb3 {[%emt 0:14:35]} Nd7 {[%emt 0:12:40]} 14. O-O-O {[%emt 0:08:35]} b5 {[%emt 0:02:41]} 15. Qf2 {[%emt 0:15:33]} a5 {[%emt 0:03:19]} 16. a4 {[%emt 0:06:58]} bxa4 {[%emt 0:03:46]} 17. Rd4 {[%emt 0:00:24]} Qc7 {[%emt 0:00:52]} 18. Rxa4 {[%emt 0:01:04]} O-O {[%emt 0:00:07]} 19. h4 {[%emt 0:04:50]} Bb7 {[%emt 0:00:46]} 20. Nd4 {[%emt 0:01:32]} Nc5 {[%emt 0:00:27]} 21. Ndb5 {[%emt 0:02:47]} Qc6 {[%emt 0:01:03]} 22. Ra1 {[%emt 0:02:33]} Rfb8 {[%emt 0:02:04]} 23. h5 {[%emt 0:01:52]} a4 {[%emt 0:00:22]} 24. h6 {[%emt 0:00:41]} g6 {[%emt 0:00:12]} 25. Rd1 {[%emt 0:00:58]} Ba6 {[%emt 0:00:59]} 26. Nd4 {[%emt 0:01:09]} Qb7 {[%emt 0:00:19]} 27. Kd2 {[%emt 0:00:57]} Rc8 {[%emt 0:00:39]} 28. Rdb1 {[%emt 0:01:02]} Qb4 {[%emt 0:01:40]} 29. Kd1 {[%emt 0:00:24]} Bc4 {[%emt 0:03:06]} 30. Ra3 {[%emt 0:00:24]} Nd7 {[%emt 0:00:27]} 31. Bd2 {[%emt 0:00:36]} Qb7 {[%emt 0:00:54]} 32. Bc1 {[%emt 0:02:47]} d5 {[%emt 0:00:56]} 33. Rxa4 {[%emt 0:00:01]} Rxa4 {[%emt 0:00:20]} 34. Nxa4 {[%emt 0:00:02]} dxe4 {[%emt 0:00:21]} 35. Nc3 {[%emt 0:00:58]} e5 {[%emt 0:00:51]} 36. Nde2 {[%emt 0:00:13]} exf3 {[%emt 0:00:20]} 37. Ng3 {[%emt 0:00:15]} Bc5 {[%emt 0:00:52]} 38. Be3 {[%emt 0:00:22]} Be7 {[%emt 0:01:18]} 39. Nge4 {[%emt 0:00:36]} Bd5 {[%emt 0:00:23]} 40. Nd2 {[%emt 0:00:34]} Bc6 {[%emt 0:00:56]} 41. Kc1 {[%emt 0:31:28]} Nf6 {[%emt 0:30:53]} 42. Qg3 {[%emt 0:01:53]} Nd7 {[%emt 0:00:00]} 43. g5 {[%emt 0:00:00]} Re8 {[%emt 0:00:00]} 44. Nb3 {[%emt 0:00:00]} Bb4 {[%emt 0:00:00]} 45. Nd1 {[%emt 0:00:00]} Ba4 {[%emt 0:00:00]} 46. Nd2 {[%emt 0:00:00]} Bxd2+ {[%emt 0:00:00]} 47. Bxd2 {[%emt 0:00:00]} Bxc2 {[%emt 0:00:00]} 48. Kxc2 {[%emt 0:00:00]} Qe4+ {[%emt 0:00:00]} 49. Kc1 {[%emt 0:00:00]} Nc5 {[%emt 0:00:12]} 50. Nc3 {[%emt 0:00:00]} Nb3+ {[%emt 0:00:14]} 51. Kd1 {[%emt 0:00:00]} Qd3 {[%emt 0:00:11]} 52. Qf2 {[%emt 0:00:00]} e4 {[%emt 0:00:49]} 53. Qe3 {[%emt 0:00:00]} f2 {[%emt 0:03:33]} 54. Qxf2 {[%emt 0:00:00]} e3 {[%emt 0:00:07]} 55. Qe2 {[%emt 0:00:00]} Qd7 {[%emt 0:00:07]} 56. Qg2 {[%emt 0:03:13]} Nxd2 {[%emt 0:00:37]} 57. Qd5 {[%emt 0:02:02]} Qa7 {[%emt 0:02:15]} 58. Rc1 {[%emt 0:01:41]} Nb3 {[%emt 0:00:54]} 59. Qxb3 {[%emt 0:00:37]} Qd4+ {[%emt 0:00:05]} 60. Kc2 {[%emt 0:00:59]} Qd2+ {[%emt 0:01:12]} 61. Kb1 {[%emt 0:00:11]} e2 {[%emt 0:00:35]} 62. Nxe2 {[%emt 0:00:50]} Qxe2 {[%emt 0:00:09]} 63. Qc3 {[%emt 0:01:02]} Qe4+ {[%emt 0:00:07]} 64. Rc2 {[%emt 0:00:27]} Qh1+ {[%emt 0:00:39]} 65. Rc1 {[%emt 0:00:09]} Qe4+ {[%emt 0:00:04]} 66. Rc2 {[%emt 0:00:03]} 1/2-1/2

[Event "GER-chW 2019"]
[Site "Magdeburg"]
[Date "2019.05.26"]
[Round "1.6"]
[White "Von Herman, Brigitte"]
[Black "Ley, Sabrina"]
[Result "1/2-1/2"]
[ECO "B22"]
[WhiteElo "2064"]
[BlackElo "1870"]
[Annotator "NA"]
[PlyCount "78"]
[EventDate "2019.05.26"]
[EventType "tourn"]
[EventCountry "GER"]
[SourceTitle "playchess.com"]
[Source "ChessBase"]
[SourceQuality "1"]
[TimeControl "40/5400+30:1800+30"]

1. e4 {[%emt 0:00:00]} c5 {[%emt 0:00:00]} 2. c3 {[%emt 0:00:00]} Nf6 {[%emt 0:00:00]} 3. e5 {[%emt 0:00:00]} Nd5 {[%emt 0:00:00]} 4. d4 {[%emt 0:00:07]} cxd4 {[%emt 0:00:00]} 5. Nf3 {[%emt 0:00:13]} e6 {[%emt 0:00:46]} 6. cxd4 {[%emt 0:00:20]} d6 {[%emt 0:01:06]} 7. Bd3 {[%emt 0:09:01]} Nc6 {[%emt 0:01:15]} 8. O-O {[%emt 0:05:00]} dxe5 {[%emt 0:06:58]} 9. dxe5 {[%emt 0:00:43]} g6 {[%emt 0:02:08]} 10. a3 {[%emt 0:01:29]} Bg7 {[%emt 0:01:49]} 11. Re1 {[%emt 0:01:16]} Qc7 {[%emt 0:08:06]} 12. Qe2 {[%emt 0:00:41]} O-O {[%emt 0:02:19]} 13. Bg5 {[%emt 0:08:40]} h6 {[%emt 0:06:14]} 14. Bd2 {[%emt 0:04:44]} Rd8 {[%emt 0:14:09]} 15. Nc3 {[%emt 0:06:37]} Nxc3 {[%emt 0:05:41]} 16. Bxc3 {[%emt 0:00:19]} Bd7 {[%emt 0:10:41]} 17. h4 {[%emt 0:06:18]} Ne7 {[%emt 0:14:35]} 18. h5 {[%emt 0:03:38]} Bc6 {[%emt 0:07:39]} 19. Rac1 {[%emt 0:05:59]} Rac8 {[%emt 0:06:00]} 20. Nd4 {[%emt 0:12:47]} Qb6 {[%emt 0:06:19]} 21. hxg6 {[%emt 0:23:07]} Rxd4 {[%emt 0:02:37]} 22. gxf7+ {[%emt 0:00:09]} Kxf7 {[%emt 0:00:39]} 23. Qh5+ {[%emt 0:05:12]} Kg8 {[%emt 0:00:16]} 24. Bxd4 {[%emt 0:00:27]} Qxd4 {[%emt 0:00:01]} 25. Bc4 {[%emt 0:01:03]} Qd7 {[%emt 0:01:54]} 26. Qg4 {[%emt 0:02:01]} Nd5 {[%emt 0:00:25]} 27. Red1 {[%emt 0:00:48]} Rf8 {[%emt 0:00:52]} 28. Rd4 {[%emt 0:01:15]} Qf7 {[%emt 0:00:26]} 29. f3 {[%emt 0:01:08]} Qf5 {[%emt 0:00:29]} 30. Qxf5 {[%emt 0:00:50]} Rxf5 {[%emt 0:00:01]} 31. Bxd5 {[%emt 0:00:07]} Bxd5 {[%emt 0:00:06]} 32. f4 {[%emt 0:00:14]} Rf7 {[%emt 0:00:35]} 33. Kh2 {[%emt 0:01:10]} Bf8 {[%emt 0:00:18]} 34. g4 {[%emt 0:00:38]} Bc6 {[%emt 0:01:07]} 35. b4 {[%emt 0:00:20]} a5 {[%emt 0:00:53]} 36. Kg3 {[%emt 0:00:25]} axb4 {[%emt 0:00:22]} 37. axb4 {[%emt 0:00:01]} Rd7 {[%emt 0:00:52]} 38. Rxd7 {[%emt 0:00:15]} Bxd7 {[%emt 0:00:01]} 39. Rc7 {[%emt 0:00:01]} Bc6 {[%emt 0:00:27]} 1/2-1/2

[Event "GER-chW 2019"]
[Site "Magdeburg"]
[Date "2019.05.26"]
[Round "1.7"]
[White "Just, Anita"]
[Black "Schmidt, Jade"]
[Result "0-1"]
[ECO "B59"]
[WhiteElo "1866"]
[BlackElo "2062"]
[Annotator "NA RC"]
[PlyCount "106"]
[EventDate "2019.05.26"]
[EventType "tourn"]
[EventCountry "GER"]
[SourceTitle "playchess.com"]
[Source "ChessBase"]
[SourceQuality "1"]
[TimeControl "40/5400+30:1800+30"]

1. e4 {[%emt 0:00:00]} c5 {[%emt 0:00:00]} 2. Nf3 {[%emt 0:00:00]} d6 {[%emt 0:00:00]} 3. d4 {[%emt 0:00:00]} cxd4 {[%emt 0:00:00]} 4. Nxd4 {[%emt 0:00:00]} Nf6 {[%emt 0:00:00]} 5. Nc3 {[%emt 0:00:13]} Nc6 {[%emt 0:00:25]} 6. Be2 {[%emt 0:00:49]} e5 {[%emt 0:00:19]} 7. Nb3 {[%emt 0:00:16]} Be7 {[%emt 0:00:13]} 8. O-O {[%emt 0:00:17]} O-O {[%emt 0:00:15]} 9. f4 {[%emt 0:00:35]} a5 {[%emt 0:02:17]} 10. Be3 {[%emt 0:02:04]} a4 {[%emt 0:04:20]} 11. Nd2 {[%emt 0:00:37]} exf4 {[%emt 0:24:21]} 12. Rxf4 {[%emt 0:02:54]} Ne5 {[%emt 0:02:30]} 13. Bd4 {[%emt 0:10:41]} Be6 {[%emt 0:09:29]} 14. b3 {[%emt 0:10:19]} axb3 {[%emt 0:07:22]} 15. cxb3 {[%emt 0:00:42]} Qa5 {[%emt 0:14:59]} 16. Nb5 {[%emt 0:16:16]} Rfc8 {[%emt 0:02:59]} 17. a4 {[%emt 0:03:06]} Nfd7 {[%emt 0:02:11]} 18. Rf2 {[%emt 0:08:41]} Rc6 {[%emt 0:17:39]} 19. Rb1 {[%emt 0:15:03]} Bg5 {[%emt 0:01:47]} 20. Nf3 {[%emt 0:05:37]} Nxf3+ {[%emt 0:00:48]} 21. Rxf3 {[%emt 0:01:52]} Ne5 {[%emt 0:01:06]} 22. Rf1 {[%emt 0:01:50]} Qb4 {[%emt 0:01:27]} 23. Na7 {[%emt 0:10:17]} Rc7 {[%emt 0:04:10]} 24. Nb5 {[%emt 0:00:30]} Rcc8 {[%emt 0:01:01]} 25. Bf2 {[%emt 0:02:33]} Be7 {[%emt 0:01:12]} 26. Nd4 {[%emt 0:02:19]} Bd7 {[%emt 0:01:07]} 27. Be1 {[%emt 0:02:14]} Qb6 {[%emt 0:00:24]} 28. a5 {[%emt 0:00:57]} Qd8 {[%emt 0:00:27]} 29. Nf5 {[%emt 0:00:29]} Be6 {[%emt 0:00:49]} 30. Bb4 {[%emt 0:01:04]} Bxf5 {[%emt 0:00:34]} 31. Rxf5 {[%emt 0:00:26]} Qc7 {[%emt 0:00:26]} 32. Bd2 {[%emt 0:02:10]} Qc5+ {[%emt 0:00:25]} 33. Kh1 {[%emt 0:00:16]} Qd4 {[%emt 0:00:09]} 34. Rf1 {[%emt 0:01:08]} Qxe4 {[%emt 0:00:21]} 35. Bf3 {[%emt 0:00:28]} Nxf3 {[%emt 0:00:10]} 36. Qxf3 {[%emt 0:00:24]} Qxf3 {[%emt 0:00:41]} 37. Rxf3 {[%emt 0:00:01]} Bf6 {[%emt 0:00:42]} 38. Bb4 {[%emt 0:00:21]} d5 {[%emt 0:00:33]} 39. Rd3 {[%emt 0:00:17]} d4 {[%emt 0:00:26]} 40. Rbd1 {[%emt 0:01:02]} Be5 {[%emt 0:00:50]} 41. g3 {[%emt 0:30:46]} f6 {[%emt 0:30:29]} 42. Kg2 {[%emt 0:00:31]} Kf7 {[%emt 0:00:33]} 43. Be1 {[%emt 0:00:00]} Rc2+ {[%emt 0:00:00]} 44. Kf3 {[%emt 0:00:00]} Rxh2 {[%emt 0:00:00]} 45. Bf2 {[%emt 0:00:00]} Rxa5 {[%emt 0:00:00]} 46. Bxd4 {[%emt 0:00:00]} Bxd4 {[%emt 0:00:00]} 47. Rxd4 {[%emt 0:00:00]} g5 {[%emt 0:00:00]} 48. Rd7+ {[%emt 0:00:00]} Kg6 {[%emt 0:00:00]} 49. Rxb7 {[%emt 0:00:00]} h5 {[%emt 0:00:00]} 50. Rdd7 {[%emt 0:00:00]} Re5 {[%emt 0:00:00]} 51. Rg7+ {[%emt 0:00:00]} Kf5 {[%emt 0:00:00]} 52. g4+ {[%emt 0:00:00]} hxg4+ {[%emt 0:00:00]} 53. Kg3 {[%emt 0:00:00]} Rhe2 {[%emt 0:00:00]} 0-1

[Event "GER-chW 2019"]
[Site "Magdeburg"]
[Date "2019.05.26"]
[Round "1.8"]
[White "Ries, Jutta"]
[Black "Perez Celis, Alba"]
[Result "0-1"]
[ECO "A03"]
[WhiteElo "2017"]
[BlackElo "1822"]
[Annotator "NA"]
[PlyCount "98"]
[EventDate "2019.05.26"]
[EventType "tourn"]
[EventCountry "GER"]
[SourceTitle "playchess.com"]
[Source "ChessBase"]
[SourceQuality "1"]
[TimeControl "40/5400+30:1800+30"]

1. f4 {[%emt 0:00:00]} d5 {[%emt 0:00:00]} 2. Nf3 {[%emt 0:00:00]} g6 {[%emt 0:01:42]} 3. e3 {[%emt 0:00:08]} Bg7 {[%emt 0:00:08]} 4. Nc3 {[%emt 0:00:48]} Nf6 {[%emt 0:00:49]} 5. b3 {[%emt 0:00:26]} O-O {[%emt 0:00:45]} 6. Bb2 {[%emt 0:00:04]} c5 {[%emt 0:01:09]} 7. Ne2 {[%emt 0:04:50]} Nc6 {[%emt 0:06:04]} 8. Ng3 {[%emt 0:09:34]} d4 {[%emt 0:19:18]} 9. Bb5 {[%emt 0:22:32]} dxe3 {[%emt 0:00:44]} 10. dxe3 {[%emt 0:00:49]} Qa5+ {[%emt 0:00:17]} 11. Qd2 {[%emt 0:02:17]} Qxb5 {[%emt 0:00:18]} 12. c4 {[%emt 0:00:31]} Qa5 {[%emt 0:03:36]} 13. Qxa5 {[%emt 0:01:31]} Nxa5 {[%emt 0:00:15]} 14. O-O {[%emt 0:00:52]} Ng4 {[%emt 0:07:51]} 15. Bxg7 {[%emt 0:01:08]} Kxg7 {[%emt 0:00:12]} 16. Rfe1 {[%emt 0:01:59]} Bd7 {[%emt 0:11:08]} 17. h3 {[%emt 0:03:27]} Nf6 {[%emt 0:01:32]} 18. e4 {[%emt 0:00:27]} Rad8 {[%emt 0:02:22]} 19. e5 {[%emt 0:01:15]} Nh5 {[%emt 0:00:51]} 20. Ne2 {[%emt 0:03:53]} Kg8 {[%emt 0:06:09]} 21. Rad1 {[%emt 0:02:26]} Bc6 {[%emt 0:02:56]} 22. Kf2 {[%emt 0:00:38]} Bxf3 {[%emt 0:01:33]} 23. Kxf3 {[%emt 0:00:08]} Nc6 {[%emt 0:00:18]} 24. g4 {[%emt 0:01:35]} Ng7 {[%emt 0:00:21]} 25. Rd5 {[%emt 0:04:36]} b6 {[%emt 0:06:33]} 26. Red1 {[%emt 0:02:29]} Ne6 {[%emt 0:00:21]} 27. Nc3 {[%emt 0:03:06]} Ned4+ {[%emt 0:00:24]} 28. Kg3 {[%emt 0:05:31]} Nb4 {[%emt 0:01:16]} 29. Rxd8 {[%emt 0:02:53]} Rxd8 {[%emt 0:00:05]} 30. Kf2 {[%emt 0:00:51]} Ne6 {[%emt 0:01:12]} 31. Rxd8+ {[%emt 0:01:15]} Nxd8 {[%emt 0:00:06]} 32. Ke3 {[%emt 0:00:15]} Ne6 {[%emt 0:00:36]} 33. Nb5 {[%emt 0:04:44]} Nc6 {[%emt 0:01:26]} 34. Ke4 {[%emt 0:01:19]} g5 {[%emt 0:04:54]} 35. f5 {[%emt 0:02:10]} Nf4 {[%emt 0:00:34]} 36. h4 {[%emt 0:00:18]} h6 {[%emt 0:01:35]} 37. hxg5 {[%emt 0:00:12]} hxg5 {[%emt 0:00:12]} 38. Nc3 {[%emt 0:04:12]} e6 {[%emt 0:02:04]} 39. Nb5 {[%emt 0:10:05]} Kf8 {[%emt 0:01:06]} 40. Nd6 {[%emt 0:01:02]} Ne2 {[%emt 0:00:22]} 41. Nb5 {[%emt 0:31:39]} Ke7 {[%emt 0:31:55]} 42. f6+ {[%emt 0:00:00]} Kf8 {[%emt 0:00:00]} 43. a3 {[%emt 0:00:00]} Nf4 {[%emt 0:00:00]} 44. b4 {[%emt 0:00:00]} cxb4 {[%emt 0:00:00]} 45. axb4 {[%emt 0:00:00]} Ng6 {[%emt 0:00:00]} 46. c5 {[%emt 0:00:00]} bxc5 {[%emt 0:00:00]} 47. bxc5 {[%emt 0:00:00]} Ngxe5 {[%emt 0:00:00]} 48. Nxa7 {[%emt 0:00:00]} Nxa7 {[%emt 0:00:00]} 49. Kxe5 {[%emt 0:00:00]} Nb5 {[%emt 0:00:00] Kd4} 0-1